[Event "SVK Extraliga 2019-20"]
[Site "Slovakia"]
[Date "2019.10.20"]
[Round "1.1"]
[White "Balogh, Csaba"]
[Black "Sahidi, Samir"]
[Result "1-0"]
[ECO "B44"]
[WhiteElo "2587"]
[BlackElo "2374"]
[Annotator "ChessBase"]
[PlyCount "65"]
[EventDate "2019.10.19"]
[EventType "team-tourn"]
[EventCountry "SVK"]
[SourceTitle "playchess.com"]
[Source "ChessBase"]
[SourceQuality "1"]
[WhiteTeam "Modra"]
[BlackTeam "Bratislava"]
[WhiteTeamCountry "HUN"]
[BlackTeamCountry "SVK"]
[TimeControl "40/5400+30:1800+30"]

1. e4 {[%emt 0:00:00]} c5 {[%emt 0:00:08]} 2. Nf3 {[%emt 0:00:00]} Nc6 {[%emt 0:01:08]} 3. d4 {[%emt 0:03:03]} cxd4 {[%emt 0:00:16]} 4. Nxd4 {[%emt 0:00:05]} e6 {[%emt 0:04:52]} 5. Nb5 {[%emt 0:04:29]} Nf6 {[%emt 0:02:18]} 6. Bf4 {[%emt 0:12:03]} e5 {[%emt 0:09:36]} 7. Bg5 {[%emt 0:00:08]} Bc5 {[%emt 0:07:55]} 8. N1c3 {[%emt 0:19:35]} h6 {[%emt 0:03:56]} 9. Be3 {[%emt 0:02:32]} Bb4 {[%emt 0:04:12]} 10. a3 {[%emt 0:09:41]} Bxc3+ {[%emt 0:00:19]} 11. Nxc3 {[%emt 0:01:47]} d6 {[%emt 0:04:30]} 12. Qd2 {[%emt 0:02:16]} Be6 {[%emt 0:04:26]} 13. O-O-O {[%emt 0:00:47]} Ke7 {[%emt 0:02:10]} 14. f4 {[%emt 0:03:41]} Bg4 {[%emt 0:04:34]} 15. Be2 {[%emt 0:00:31]} Re8 {[%emt 0:13:32]} 16. Rhf1 {[%emt 0:15:48]} Kf8 {[%emt 0:05:28]} 17. Bxg4 {[%emt 0:00:13]} Nxg4 {[%emt 0:00:11]} 18. Bg1 {[%emt 0:00:07]} Qh4 {[%emt 0:08:43]} 19. g3 {[%emt 0:05:12]} Qh5 {[%emt 0:02:51]} 20. Qg2 {[%emt 0:02:39]} exf4 {[%emt 0:02:25]} 21. gxf4 {[%emt 0:00:04]} Rad8 {[%emt 0:01:21]} 22. Rd3 {[%emt 0:09:29]} f5 {[%emt 0:07:04]} 23. Rd5 {[%emt 0:02:32]} Ne7 {[%emt 0:00:18]} 24. Rb5 {[%emt 0:00:40]} b6 {[%emt 0:01:27]} 25. h3 {[%emt 0:00:25]} Nf6 {[%emt 0:00:18]} 26. Bd4 {[%emt 0:00:05]} Qf7 {[%emt 0:00:44]} 27. Rg1 {[%emt 0:00:21]} fxe4 {[%emt 0:00:47]} 28. Nxe4 {[%emt 0:00:16]} Neg8 {[%emt 0:01:10]} 29. Nxf6 {[%emt 0:02:51]} Nxf6 {[%emt 0:00:09]} 30. Bxf6 {[%emt 0:00:07]} gxf6 {[%emt 0:01:24]} 31. Rb3 {[%emt 0:00:05]} Rd7 {[%emt 0:02:56]} 32. Rg3 {[%emt 0:00:10]} Qe6 {[%emt 0:00:50]} 33. f5 {[%emt 0:02:33]} 1-0

[Event "SVK Extraliga 2019-20"]
[Site "Slovakia"]
[Date "2019.10.19"]
[Round "1.1"]
[White "Balog, Imre"]
[Black "Vovk, Jurij"]
[Result "0-1"]
[ECO "A45"]
[WhiteElo "2566"]
[BlackElo "2572"]
[Annotator "ChessBase"]
[PlyCount "94"]
[EventDate "2019.10.19"]
[EventType "team-tourn"]
[EventCountry "SVK"]
[SourceTitle "playchess.com"]
[Source "ChessBase"]
[SourceQuality "1"]
[WhiteTeam "Podhajska"]
[BlackTeam "Kosice"]
[TimeControl "40/5400+30:1800+30"]

1. d4 {[%emt 0:00:00]} Nf6 {[%emt 0:00:09]} 2. Bg5 {[%emt 0:00:00]} e6 {[%emt 0:00:18]} 3. e4 {[%emt 0:00:29]} h6 {[%emt 0:00:06]} 4. Bxf6 {[%emt 0:00:04]} Qxf6 {[%emt 0:00:04]} 5. Nc3 {[%emt 0:00:07]} Bb4 {[%emt 0:00:26]} 6. Nge2 {[%emt 0:01:06]} d6 {[%emt 0:09:53]} 7. Qd3 {[%emt 0:05:50]} c6 {[%emt 0:01:59]} 8. Ng3 {[%emt 0:08:03]} e5 {[%emt 0:14:35]} 9. Nh5 {[%emt 0:07:11]} Qg6 {[%emt 0:10:30]} 10. Be2 {[%emt 0:01:10]} O-O {[%emt 0:00:34]} 11. O-O {[%emt 0:03:27]} Nd7 {[%emt 0:00:47]} 12. a3 {[%emt 0:02:22]} Ba5 {[%emt 0:03:48]} 13. b4 {[%emt 0:00:38]} Bb6 {[%emt 0:03:51]} 14. d5 {[%emt 0:00:44]} Bd4 {[%emt 0:04:11]} 15. Ng3 {[%emt 0:15:34]} Nf6 {[%emt 0:03:41]} 16. dxc6 {[%emt 0:01:04]} bxc6 {[%emt 0:00:23]} 17. Rad1 {[%emt 0:00:06]} d5 {[%emt 0:08:56]} 18. Bf3 {[%emt 0:05:51]} Rd8 {[%emt 0:08:36]} 19. b5 {[%emt 0:10:37]} cxb5 {[%emt 0:09:01]} 20. Nxd5 {[%emt 0:06:10]} Nxd5 {[%emt 0:00:07]} 21. exd5 {[%emt 0:00:05]} Qxd3 {[%emt 0:00:27]} 22. Rxd3 {[%emt 0:00:27]} Rb8 {[%emt 0:04:49]} 23. Re1 {[%emt 0:02:54]} Kf8 {[%emt 0:02:03]} 24. Rb3 {[%emt 0:00:50]} a5 {[%emt 0:01:26]} 25. Reb1 {[%emt 0:01:53]} Bd7 {[%emt 0:00:37]} 26. Ne4 {[%emt 0:04:34]} f5 {[%emt 0:01:56]} 27. Nc3 {[%emt 0:00:16]} Rdc8 {[%emt 0:06:53]} 28. Nxb5 {[%emt 0:01:43]} a4 {[%emt 0:01:35]} 29. Rb4 {[%emt 0:00:05]} Rxb5 {[%emt 0:00:40]} 30. Rxb5 {[%emt 0:00:02]} Bxb5 {[%emt 0:00:06]} 31. Rxb5 {[%emt 0:00:02]} Rxc2 {[%emt 0:00:05]} 32. Kf1 {[%emt 0:00:10]} Ke7 {[%emt 0:01:28]} 33. Rb7+ {[%emt 0:02:38]} Kd6 {[%emt 0:00:31]} 34. Rxg7 {[%emt 0:00:21]} Rc1+ {[%emt 0:01:42]} 35. Ke2 {[%emt 0:00:07]} e4 {[%emt 0:00:02]} 36. Rg6+ {[%emt 0:00:41]} Kxd5 {[%emt 0:00:56]} 37. Bh5 {[%emt 0:00:02]} Rc2+ {[%emt 0:00:34]} 38. Kd1 {[%emt 0:01:09]} Ra2 {[%emt 0:00:29]} 39. Ra6 {[%emt 0:00:45]} Rxf2 {[%emt 0:00:38]} 40. Bf7+ {[%emt 0:02:11]} Ke5 {[%emt 0:00:27]} 41. g3 {[%emt 0:30:57]} Bc3 {[%emt 0:01:50]} 42. Rxh6 {[%emt 0:00:00]} e3 {[%emt 0:05:02]} 43. Re6+ {[%emt 0:00:00]} Kd4 {[%emt 0:00:06]} 44. Bh5 {[%emt 0:00:00]} Rd2+ {[%emt 0:00:27]} 45. Kc1 {[%emt 0:00:00]} Rxh2 {[%emt 0:03:27]} 46. Bd1 {[%emt 0:00:00]} Kd3 {[%emt 0:00:39]} 47. Bxa4 {[%emt 0:00:00]} Rh1+ {[%emt 0:00:25]} 0-1

[Event "SVK Extraliga 2019-20"]
[Site "Slovakia"]
[Date "2019.10.19"]
[Round "1.1"]
[White "Pechac, Jergus"]
[Black "Krejci, Jan"]
[Result "0-1"]
[ECO "A45"]
[WhiteElo "2491"]
[BlackElo "2574"]
[Annotator "ChessBase"]
[PlyCount "120"]
[EventDate "2019.10.19"]
[EventType "team-tourn"]
[EventCountry "SVK"]
[SourceTitle "playchess.com"]
[Source "ChessBase"]
[SourceQuality "1"]
[WhiteTeam "Zilina"]
[BlackTeam "Prakovce"]
[TimeControl "40/5400+30:1800+30"]

1. d4 {[%emt 0:00:00]} Nf6 {[%emt 0:00:00]} 2. Bf4 {[%emt 0:00:00]} d5 {[%emt 0:00:43]} 3. e3 {[%emt 0:00:00]} Bf5 {[%emt 0:03:00]} 4. c4 {[%emt 0:00:33]} e6 {[%emt 0:03:59]} 5. Nc3 {[%emt 0:00:14]} Bb4 {[%emt 0:03:51]} 6. Qb3 {[%emt 0:01:06]} c5 {[%emt 0:03:01]} 7. dxc5 {[%emt 0:10:05]} Nc6 {[%emt 0:06:38]} 8. a3 {[%emt 0:10:13]} Bxc3+ {[%emt 0:02:17]} 9. Qxc3 {[%emt 0:12:27]} d4 {[%emt 0:03:08]} 10. Qc1 {[%emt 0:08:54]} Ne4 {[%emt 0:07:38]} 11. b4 {[%emt 0:01:33]} e5 {[%emt 0:07:10]} 12. Bg3 {[%emt 0:01:19]} O-O {[%emt 0:03:09]} 13. Nf3 {[%emt 0:01:01]} Re8 {[%emt 0:00:45]} 14. Be2 {[%emt 0:04:30]} Nc3 {[%emt 0:04:33]} 15. Qd2 {[%emt 0:03:06]} Nxe2 {[%emt 0:01:32]} 16. Qxe2 {[%emt 0:01:43]} dxe3 {[%emt 0:00:10]} 17. Qxe3 {[%emt 0:03:45]} Bd3 {[%emt 0:03:00]} 18. Nxe5 {[%emt 0:12:41]} Bxc4 {[%emt 0:08:30]} 19. Rd1 {[%emt 0:00:16]} Qf6 {[%emt 0:03:16]} 20. Rd6 {[%emt 0:07:01]} Nxe5 {[%emt 0:09:04]} 21. Rxf6 {[%emt 0:00:08]} Nd3+ {[%emt 0:00:03]} 22. Kd2 {[%emt 0:00:06]} Rxe3 {[%emt 0:00:05]} 23. Rd6 {[%emt 0:05:19]} Nxf2 {[%emt 0:04:04]} 24. Bxf2 {[%emt 0:00:36]} Rxa3 {[%emt 0:00:06]} 25. Bd4 {[%emt 0:05:13]} Ra2+ {[%emt 0:04:32]} 26. Kc3 {[%emt 0:00:06]} Bb5 {[%emt 0:00:04]} 27. Re1 {[%emt 0:00:14]} Kf8 {[%emt 0:00:55]} 28. Rd1 {[%emt 0:03:33]} Re8 {[%emt 0:05:10]} 29. Rd2 {[%emt 0:01:12]} Rxd2 {[%emt 0:03:58]} 30. Kxd2 {[%emt 0:00:06]} a6 {[%emt 0:03:56]} 31. Be3 {[%emt 0:00:51]} f6 {[%emt 0:00:12]} 32. g4 {[%emt 0:03:06]} Kf7 {[%emt 0:02:36]} 33. h4 {[%emt 0:00:41]} Re4 {[%emt 0:03:54]} 34. Rd4 {[%emt 0:00:05]} Re5 {[%emt 0:00:39]} 35. g5 {[%emt 0:01:07]} Bc6 {[%emt 0:00:16]} 36. Rd6 {[%emt 0:02:24]} Rf5 {[%emt 0:00:40]} 37. gxf6 {[%emt 0:01:41]} gxf6 {[%emt 0:00:05]} 38. Bd4 {[%emt 0:00:38]} h5 {[%emt 0:01:05]} 39. Ke3 {[%emt 0:00:49]} Rf3+ {[%emt 0:00:25]} 40. Ke2 {[%emt 0:00:23]} Rf4 {[%emt 0:00:33]} 41. Ke3 {[%emt 0:02:09]} Re4+ {[%emt 0:04:01]} 42. Kd3 {[%emt 0:00:44]} Rxh4 {[%emt 0:00:33]} 43. Rxf6+ {[%emt 0:00:07]} Ke7 {[%emt 0:00:05]} 44. Rh6 {[%emt 0:00:51]} Rh3+ {[%emt 0:00:26]} 45. Kd2 {[%emt 0:02:11]} Be4 {[%emt 0:04:04]} 46. Be5 {[%emt 0:01:55]} Bc6 {[%emt 0:01:57]} 47. Bd4 {[%emt 0:00:23]} Kf7 {[%emt 0:03:09]} 48. Rf6+ {[%emt 0:04:39]} Kg8 {[%emt 0:00:11]} 49. Rh6 {[%emt 0:01:48]} h4 {[%emt 0:01:13]} 50. Be5 {[%emt 0:05:58]} Rh1 {[%emt 0:00:35]} 51. Ke3 {[%emt 0:04:51]} h3 {[%emt 0:00:07]} 52. Kf2 {[%emt 0:00:28]} Bg2 {[%emt 0:00:45]} 53. Kg3 {[%emt 0:00:35]} Rb1 {[%emt 0:00:22]} 54. Kf4 {[%emt 0:02:28]} Rf1+ {[%emt 0:01:56]} 55. Kg5 {[%emt 0:00:51]} Kf7 {[%emt 0:00:27]} 56. Bf4 {[%emt 0:00:24]} Rb1 {[%emt 0:03:22]} 57. Bd2 {[%emt 0:06:47]} Rb2 {[%emt 0:00:20]} 58. Bc3 {[%emt 0:00:16]} Rb3 {[%emt 0:00:20]} 59. Bd2 {[%emt 0:00:23]} Rd3 {[%emt 0:00:56]} 60. Be1 {[%emt 0:00:37]} Rd5+ {[%emt 0:01:35]} 0-1

[Event "SVK Extraliga 2019-20"]
[Site "Slovakia"]
[Date "2019.10.19"]
[Round "1.1"]
[White "Cernousek, Lukas"]
[Black "Papp, Gabor"]
[Result "0-1"]
[ECO "C11"]
[WhiteElo "2458"]
[BlackElo "2587"]
[Annotator "ChessBase"]
[PlyCount "52"]
[EventDate "2019.10.19"]
[EventType "team-tourn"]
[EventCountry "SVK"]
[SourceTitle "playchess.com"]
[Source "ChessBase"]
[SourceQuality "1"]
[WhiteTeam "Dubnica"]
[BlackTeam "Slovan"]
[TimeControl "40/5400+30:1800+30"]

1. d4 {[%emt 0:00:00]} e6 {[%emt 0:00:00]} 2. e4 {[%emt 0:02:45]} d5 {[%emt 0:01:03]} 3. Nc3 {[%emt 0:02:21]} Nf6 {[%emt 0:02:04]} 4. e5 {[%emt 0:00:02]} Nfd7 {[%emt 0:00:10]} 5. f4 {[%emt 0:00:04]} c5 {[%emt 0:00:32]} 6. Nf3 {[%emt 0:00:02]} Nc6 {[%emt 0:00:34]} 7. Be3 {[%emt 0:00:03]} Be7 {[%emt 0:01:16]} 8. Qd2 {[%emt 0:00:06]} O-O {[%emt 0:02:13]} 9. dxc5 {[%emt 0:00:05]} Qa5 {[%emt 0:05:19]} 10. a3 {[%emt 0:00:06]} a6 {[%emt 0:06:22]} 11. O-O-O {[%emt 0:32:37]} b6 {[%emt 0:04:19]} 12. cxb6 {[%emt 0:09:04]} Bxa3 {[%emt 0:01:31]} 13. Nb1 {[%emt 0:03:37]} Bb4 {[%emt 0:06:01]} 14. c3 {[%emt 0:00:15]} Nc5 {[%emt 0:14:27]} 15. Qc2 {[%emt 0:07:18]} Bd7 {[%emt 0:02:32]} 16. Kd2 {[%emt 0:04:31]} Ne4+ {[%emt 0:12:03]} 17. Ke1 {[%emt 0:13:48]} Bc5 {[%emt 0:00:07]} 18. Bxc5 {[%emt 0:05:43]} Qxc5 {[%emt 0:00:14]} 19. Bd3 {[%emt 0:00:03]} Qe3+ {[%emt 0:04:14]} 20. Qe2 {[%emt 0:00:01]} Qxf4 {[%emt 0:00:07]} 21. Bxe4 {[%emt 0:00:04]} dxe4 {[%emt 0:01:16]} 22. Rxd7 {[%emt 0:05:00]} exf3 {[%emt 0:00:12]} 23. Qxf3 {[%emt 0:00:01]} Qxe5+ {[%emt 0:02:44]} 24. Kf2 {[%emt 0:00:04]} Qb5 {[%emt 0:03:26]} 25. Qe3 {[%emt 0:02:07]} Rab8 {[%emt 0:03:09]} 26. Na3 {[%emt 0:01:16]} Qxb2+ {[%emt 0:00:47]} 0-1

[Event "SVK Extraliga 2019-20"]
[Site "Slovakia"]
[Date "2019.10.19"]
[Round "1.1"]
[White "Petenyi, Tamas"]
[Black "Babula, Vlastimil"]
[Result "0-1"]
[ECO "A04"]
[WhiteElo "2427"]
[BlackElo "2559"]
[Annotator "ChessBase"]
[PlyCount "64"]
[EventDate "2019.10.19"]
[EventType "team-tourn"]
[EventCountry "SVK"]
[SourceTitle "playchess.com"]
[Source "ChessBase"]
[SourceQuality "1"]
[WhiteTeam "Streda"]
[BlackTeam "Humenne"]
[TimeControl "40/5400+30:1800+30"]

1. Nf3 {[%emt 0:00:00]} c5 {[%emt 0:01:57]} 2. g3 {[%emt 0:03:15]} Nc6 {[%emt 0:01:28]} 3. Bg2 {[%emt 0:00:07]} g6 {[%emt 0:01:22]} 4. O-O {[%emt 0:00:08]} Bg7 {[%emt 0:00:33]} 5. c4 {[%emt 0:00:53]} e6 {[%emt 0:14:21]} 6. d3 {[%emt 0:06:23]} Nge7 {[%emt 0:01:07]} 7. Nc3 {[%emt 0:01:17]} d6 {[%emt 0:03:12]} 8. Bd2 {[%emt 0:07:03]} h6 {[%emt 0:04:13]} 9. a3 {[%emt 0:05:38]} O-O {[%emt 0:03:44]} 10. Rb1 {[%emt 0:00:59]} b6 {[%emt 0:09:36]} 11. b4 {[%emt 0:01:33]} Bb7 {[%emt 0:00:28]} 12. Qc1 {[%emt 0:04:41]} Kh7 {[%emt 0:02:05]} 13. b5 {[%emt 0:02:25]} Na5 {[%emt 0:01:05]} 14. Nd1 {[%emt 0:04:37]} Qc7 {[%emt 0:05:59]} 15. Bc3 {[%emt 0:07:04]} Bxc3 {[%emt 0:04:34]} 16. Nxc3 {[%emt 0:05:14]} d5 {[%emt 0:01:28]} 17. cxd5 {[%emt 0:03:37]} exd5 {[%emt 0:01:28]} 18. e4 {[%emt 0:06:02]} Rad8 {[%emt 0:02:57]} 19. h4 {[%emt 0:03:08]} c4 {[%emt 0:16:57]} 20. Nxd5 {[%emt 0:18:56]} Nxd5 {[%emt 0:00:38]} 21. exd5 {[%emt 0:00:04]} Bxd5 {[%emt 0:02:03]} 22. dxc4 {[%emt 0:02:48]} Nxc4 {[%emt 0:01:58]} 23. Rb4 {[%emt 0:00:31]} Qc5 {[%emt 0:01:43]} 24. Re1 {[%emt 0:06:58]} Rfe8 {[%emt 0:06:02]} 25. Rxe8 {[%emt 0:00:37]} Rxe8 {[%emt 0:00:06]} 26. Nh2 {[%emt 0:00:32]} Ne3 {[%emt 0:03:37]} 27. Qd2 {[%emt 0:03:16]} Nxg2 {[%emt 0:06:01]} 28. Ng4 {[%emt 0:00:19]} Re6 {[%emt 0:01:24]} 29. Qxh6+ {[%emt 0:04:44]} Kg8 {[%emt 0:00:02]} 30. Qg5 {[%emt 0:00:24]} Re1+ {[%emt 0:01:31]} 31. Kh2 {[%emt 0:00:01]} Rh1+ {[%emt 0:00:19]} 32. Kxh1 {[%emt 0:00:13]} Nxh4+ {[%emt 0:00:25]} 0-1

[Event "SVK Extraliga 2019-20"]
[Site "Slovakia"]
[Date "2019.10.19"]
[Round "1.2"]
[White "Markos, Jan"]
[Black "Nemeth, Miklos"]
[Result "1-0"]
[ECO "E18"]
[WhiteElo "2572"]
[BlackElo "2488"]
[Annotator "ChessBase"]
[PlyCount "69"]
[EventDate "2019.10.19"]
[EventType "team-tourn"]
[EventCountry "SVK"]
[SourceTitle "playchess.com"]
[Source "ChessBase"]
[SourceQuality "1"]
[WhiteTeam "Humenne"]
[BlackTeam "Streda"]
[TimeControl "40/5400+30:1800+30"]

1. Nf3 {[%emt 0:00:00]} Nf6 {[%emt 0:00:00]} 2. g3 {[%emt 0:00:00]} b6 {[%emt 0:00:00]} 3. Bg2 {[%emt 0:00:00]} Bb7 {[%emt 0:00:00]} 4. d4 {[%emt 0:00:00]} e6 {[%emt 0:00:00]} 5. O-O {[%emt 0:00:05]} Be7 {[%emt 0:00:00]} 6. c4 {[%emt 0:00:05]} O-O {[%emt 0:00:04]} 7. Nc3 {[%emt 0:00:03]} Ne4 {[%emt 0:01:22]} 8. Bd2 {[%emt 0:00:10]} d6 {[%emt 0:02:47]} 9. d5 {[%emt 0:03:06]} Nxd2 {[%emt 0:00:23]} 10. Qxd2 {[%emt 0:01:55]} e5 {[%emt 0:01:47]} 11. b4 {[%emt 0:02:58]} a5 {[%emt 0:08:37]} 12. a3 {[%emt 0:00:17]} Na6 {[%emt 0:01:16]} 13. Rab1 {[%emt 0:03:14]} axb4 {[%emt 0:01:54]} 14. axb4 {[%emt 0:00:09]} f5 {[%emt 0:00:30]} 15. Ne1 {[%emt 0:06:48]} Bg5 {[%emt 0:06:51]} 16. f4 {[%emt 0:03:20]} exf4 {[%emt 0:05:39]} 17. gxf4 {[%emt 0:00:42]} Bf6 {[%emt 0:00:04]} 18. Nc2 {[%emt 0:02:45]} Nb8 {[%emt 0:09:08]} 19. Nd4 {[%emt 0:06:09]} Bxd4+ {[%emt 0:01:17]} 20. Qxd4 {[%emt 0:00:06]} Nd7 {[%emt 0:00:30]} 21. Ra1 {[%emt 0:11:36]} Nf6 {[%emt 0:12:12]} 22. Rxa8 {[%emt 0:03:51]} Bxa8 {[%emt 0:01:56]} 23. Qd3 {[%emt 0:03:15]} Qe7 {[%emt 0:08:13]} 24. Nb5 {[%emt 0:04:22]} Bb7 {[%emt 0:04:45]} 25. Qxf5 {[%emt 0:16:14]} Qe3+ {[%emt 0:01:57]} 26. Kh1 {[%emt 0:00:06]} Qxe2 {[%emt 0:01:37]} 27. Qe6+ {[%emt 0:00:25]} Qxe6 {[%emt 0:00:08]} 28. dxe6 {[%emt 0:00:02]} Bxg2+ {[%emt 0:10:07]} 29. Kxg2 {[%emt 0:00:10]} Ra8 {[%emt 0:09:12]} 30. Nxc7 {[%emt 0:01:00]} Rc8 {[%emt 0:01:57]} 31. Ra1 {[%emt 0:00:27]} Ne8 {[%emt 0:03:09]} 32. Ra8 {[%emt 0:02:36]} Rxa8 {[%emt 0:00:03]} 33. Nxa8 {[%emt 0:00:05]} Kf8 {[%emt 0:00:09]} 34. Nxb6 {[%emt 0:00:38]} Nc7 {[%emt 0:00:09]} 35. f5 {[%emt 0:00:23]} 1-0

[Event "SVK Extraliga 2019-20"]
[Site "Slovakia"]
[Date "2019.10.19"]
[Round "1.2"]
[White "Zilka, Stepan"]
[Black "Bernasek, Jan"]
[Result "1-0"]
[ECO "B10"]
[WhiteElo "2536"]
[BlackElo "2490"]
[Annotator "RC"]
[PlyCount "67"]
[EventDate "2019.10.19"]
[EventType "team-tourn"]
[EventCountry "SVK"]
[SourceTitle "playchess.com"]
[Source "ChessBase"]
[SourceQuality "1"]
[WhiteTeam "Prakovce"]
[BlackTeam "Zilina"]
[TimeControl "40/5400+30:1800+30"]

1. e4 {[%emt 0:00:00]} c6 {[%emt 0:02:06]} 2. Nf3 {[%emt 0:00:00]} d5 {[%emt 0:00:51]} 3. d3 {[%emt 0:00:02]} dxe4 {[%emt 0:02:33]} 4. dxe4 {[%emt 0:00:12]} Qxd1+ {[%emt 0:00:03]} 5. Kxd1 {[%emt 0:00:06]} Bg4 {[%emt 0:01:07]} 6. Nbd2 {[%emt 0:01:43]} f6 {[%emt 0:03:19]} 7. Be2 {[%emt 0:04:20]} e5 {[%emt 0:04:03]} 8. Ne1 {[%emt 0:00:04]} Bxe2+ {[%emt 0:02:29]} 9. Kxe2 {[%emt 0:00:05]} Na6 {[%emt 0:00:06]} 10. Nd3 {[%emt 0:04:05]} Nc5 {[%emt 0:04:25]} 11. Nxc5 {[%emt 0:00:13]} Bxc5 {[%emt 0:00:05]} 12. a4 {[%emt 0:00:17]} Ne7 {[%emt 0:02:05]} 13. Nb3 {[%emt 0:02:20]} Bd6 {[%emt 0:08:50]} 14. Be3 {[%emt 0:00:07]} Kd7 {[%emt 0:07:40]} 15. a5 {[%emt 0:08:20]} Kc7 {[%emt 0:01:52]} 16. Rhd1 {[%emt 0:00:21]} Ng6 {[%emt 0:05:48]} 17. g3 {[%emt 0:09:55]} Rhd8 {[%emt 0:01:19]} 18. Rd3 {[%emt 0:14:27]} Nf8 {[%emt 0:03:34]} 19. f4 {[%emt 0:00:48]} exf4 {[%emt 0:05:44]} 20. gxf4 {[%emt 0:00:15]} Ne6 {[%emt 0:04:07]} 21. f5 {[%emt 0:00:44]} Nf8 {[%emt 0:05:59]} 22. Rad1 {[%emt 0:00:45]} Be7 {[%emt 0:03:04]} 23. Bf4+ {[%emt 0:01:50]} Kc8 {[%emt 0:00:08]} 24. Rxd8+ {[%emt 0:01:54]} Bxd8 {[%emt 0:00:05]} 25. Bd6 {[%emt 0:01:01]} Nd7 {[%emt 0:04:11]} 26. Rg1 {[%emt 0:00:03]} Bc7 {[%emt 0:03:03]} 27. Be7 {[%emt 0:02:04]} Bxh2 {[%emt 0:06:51]} 28. Rxg7 {[%emt 0:00:27]} Rb8 {[%emt 0:00:37]} 29. Nd4 {[%emt 0:01:33]} b5 {[%emt 0:08:53]} 30. Rxh7 {[%emt 0:02:59]} Bg3 {[%emt 0:01:19]} 31. Nxc6 {[%emt 0:00:24]} Rb7 {[%emt 0:00:23]} 32. Rh8+ {[%emt 0:03:46]} Kc7 {[%emt 0:00:02]} 33. Nb4 {[%emt 0:00:07]} Be5 {[%emt 0:03:53]} 34. c3 {[%emt 0:04:13]} 1-0

[Event "SVK Extraliga 2019-20"]
[Site "Slovakia"]
[Date "2019.10.19"]
[Round "1.2"]
[White "Vetoshko, Volodymyr"]
[Black "Chovan, Milan"]
[Result "1-0"]
[ECO "C50"]
[WhiteElo "2506"]
[BlackElo "2318"]
[Annotator "ChessBase"]
[PlyCount "61"]
[EventDate "2019.10.19"]
[EventType "team-tourn"]
[EventCountry "SVK"]
[SourceTitle "playchess.com"]
[Source "ChessBase"]
[SourceQuality "1"]
[WhiteTeam "Kosice"]
[BlackTeam "Podhajska"]
[TimeControl "40/5400+30:1800+30"]

1. e4 {[%emt 0:00:00]} e5 {[%emt 0:00:00]} 2. Nf3 {[%emt 0:00:00]} Nc6 {[%emt 0:00:00]} 3. Bc4 {[%emt 0:00:00]} Nf6 {[%emt 0:00:00]} 4. d3 {[%emt 0:00:00]} Be7 {[%emt 0:00:01]} 5. O-O {[%emt 0:00:00]} O-O {[%emt 0:00:09]} 6. Re1 {[%emt 0:00:07]} d6 {[%emt 0:01:03]} 7. a4 {[%emt 0:00:28]} Na5 {[%emt 0:00:47]} 8. Ba2 {[%emt 0:03:44]} c5 {[%emt 0:00:10]} 9. c3 {[%emt 0:00:01]} Nc6 {[%emt 0:09:02]} 10. Na3 {[%emt 0:00:45]} Be6 {[%emt 0:05:27]} 11. Bxe6 {[%emt 0:03:47]} fxe6 {[%emt 0:00:08]} 12. Nc2 {[%emt 0:03:48]} Qd7 {[%emt 0:07:17]} 13. Ne3 {[%emt 0:27:44]} d5 {[%emt 0:06:27]} 14. Qc2 {[%emt 0:03:20]} Rad8 {[%emt 0:03:46]} 15. Bd2 {[%emt 0:04:27]} Bd6 {[%emt 0:12:23]} 16. Rad1 {[%emt 0:17:33]} Bb8 {[%emt 0:01:16]} 17. h3 {[%emt 0:00:20]} Nh5 {[%emt 0:10:59]} 18. Ng4 {[%emt 0:00:45]} d4 {[%emt 0:06:27]} 19. Ngh2 {[%emt 0:14:44]} Bd6 {[%emt 0:02:56]} 20. cxd4 {[%emt 0:02:03]} exd4 {[%emt 0:01:16]} 21. e5 {[%emt 0:00:51]} Be7 {[%emt 0:00:26]} 22. Re4 {[%emt 0:00:10]} g6 {[%emt 0:01:40]} 23. Ng4 {[%emt 0:01:59]} Qd5 {[%emt 0:04:33]} 24. Bg5 {[%emt 0:01:56]} Bxg5 {[%emt 0:01:54]} 25. Nxg5 {[%emt 0:00:02]} Kg7 {[%emt 0:00:57]} 26. Qxc5 {[%emt 0:03:16]} Qb3 {[%emt 0:02:42]} 27. Qc1 {[%emt 0:00:36]} Ne7 {[%emt 0:13:06]} 28. Rde1 {[%emt 0:01:43]} Rc8 {[%emt 0:01:56]} 29. Qd1 {[%emt 0:00:25]} Qd5 {[%emt 0:00:06]} 30. Rxd4 {[%emt 0:00:19]} Qc6 {[%emt 0:02:28]} 31. Rd6 {[%emt 0:00:09]} 1-0

[Event "SVK Extraliga 2019-20"]
[Site "Slovakia"]
[Date "2019.10.20"]
[Round "1.2"]
[White "Macko, Miroslav"]
[Black "Michalik, Peter"]
[Result "0-1"]
[ECO "B48"]
[WhiteElo "2303"]
[BlackElo "2578"]
[Annotator "ChessBase"]
[PlyCount "65"]
[EventDate "2019.10.19"]
[EventType "team-tourn"]
[EventCountry "SVK"]
[SourceTitle "playchess.com"]
[Source "ChessBase"]
[SourceQuality "1"]
[WhiteTeam "Bratislava"]
[BlackTeam "Modra"]
[WhiteTeamCountry "SVK"]
[BlackTeamCountry "CZE"]
[TimeControl "40/5400+30:1800+30"]

1. e4 {[%emt 0:00:00]} c5 {[%emt 0:00:00]} 2. Nf3 {[%emt 0:00:00]} e6 {[%emt 0:00:00]} 3. d4 {[%emt 0:00:51]} cxd4 {[%emt 0:00:00]} 4. Nxd4 {[%emt 0:00:03]} Nc6 {[%emt 0:00:00]} 5. Nc3 {[%emt 0:02:06]} Qc7 {[%emt 0:00:05]} 6. Be3 {[%emt 0:05:29]} a6 {[%emt 0:00:07]} 7. Be2 {[%emt 0:01:04]} Nf6 {[%emt 0:02:04]} 8. a3 {[%emt 0:12:47]} Be7 {[%emt 0:05:10]} 9. O-O {[%emt 0:05:38]} O-O {[%emt 0:02:03]} 10. f4 {[%emt 0:04:23]} d6 {[%emt 0:00:48]} 11. Nxc6 {[%emt 0:10:20]} bxc6 {[%emt 0:00:34]} 12. b4 {[%emt 0:01:06]} Bb7 {[%emt 0:05:25]} 13. Bd3 {[%emt 0:02:37]} Rfd8 {[%emt 0:04:27]} 14. Qe2 {[%emt 0:04:06]} c5 {[%emt 0:04:34]} 15. bxc5 {[%emt 0:03:07]} dxc5 {[%emt 0:00:19]} 16. e5 {[%emt 0:01:46]} c4 {[%emt 0:00:10]} 17. Bxc4 {[%emt 0:04:37]} Ng4 {[%emt 0:00:09]} 18. Qxg4 {[%emt 0:03:43]} Qxc4 {[%emt 0:00:06]} 19. Ne2 {[%emt 0:01:10]} g6 {[%emt 0:01:47]} 20. Ng3 {[%emt 0:22:34]} Bc5 {[%emt 0:03:49]} 21. Bxc5 {[%emt 0:03:07]} Qxc5+ {[%emt 0:00:06]} 22. Rf2 {[%emt 0:02:09]} Rd2 {[%emt 0:00:10]} 23. Raf1 {[%emt 0:00:57]} Rad8 {[%emt 0:00:31]} 24. h3 {[%emt 0:04:30]} Qe3 {[%emt 0:09:05]} 25. Nh1 {[%emt 0:01:04]} Rxc2 {[%emt 0:04:13]} 26. Qh4 {[%emt 0:00:55]} Rd4 {[%emt 0:07:34]} 27. Qe7 {[%emt 0:01:19]} Bc6 {[%emt 0:02:12]} 28. Qh4 {[%emt 0:01:46]} h5 {[%emt 0:02:48]} 29. Kh2 {[%emt 0:00:26]} Rdd2 {[%emt 0:03:08]} 30. Rxd2 {[%emt 0:00:47]} Rxd2 {[%emt 0:00:03]} 31. Rf2 {[%emt 0:00:07]} Rd1 {[%emt 0:00:07]} 32. Rc2 {[%emt 0:00:54]} Qg1+ {[%emt 0:00:10]} 33. Kg3 {[%emt 0:00:30]} 0-1